bitfinex/quotes_SOLUSD_20250630
["timestamp","ask_amount","ask_price","bid_price","bid_amount"]
[1751301318048,27.85590213,157.08,157.05,6.93544161]
[1751301318480,6.05120908,157.07,157.06,0.1]
[1751301319868,12.91779722,157.07,157.06,0.1]
[1751301321178,6.86658814,157.07,157.06,0.1]
[1751301322883,0.5,157.07,157.06,5.57426221]
[1751301323093,0.5,157.07,157.06,7.11486221]
[1751301324195,0.2,157.15,157.07,18.64964886]
[1751301324357,0.2,157.15,157.13,5.57426221]
[1751301324971,0.2,157.15,157.09,18.64964886]
[1751301325181,6.36375206,157.14,157.13,5.57426221]
[1751301325567,6.36375206,157.14,157.1,6.36]
[1751301325886,0.47694687,157.13,157.1,14.61585726]
[1751301327279,6.36456211,157.12,157.1,6.36]
[1751301328465,6.36456211,157.12,157.06,1.5406]
[1751301328466,30.53182466,157.12,157.06,1.5406]
[1751301328665,0.47694687,157.11,157.07,8.25585726]
[1751301329465,6.36537237,157.1,157.07,8.25585726]
[1751301330883,6.36537237,157.1,157.08,8.25585726]
[1751301331599,6.36375206,157.14,157.09,8.25585726]
[1751301331764,16.10901285,157.15,157.13,8.25585726]
[1751301331765,0.2,157.15,157.13,8.25585726]
[1751301331958,0.2,157.15,157.14,8.25585726]
[1751301332903,0.2,157.15,157.14,26.90550612]
[1751301333080,0.2,157.15,157.14,54.44982926]
[1751301333597,0.2,157.15,157.14,60.81358132]
[1751301333967,0.2,157.15,157.14,54.44982926]
[1751301334361,0.2,157.15,157.14,35.51585726]
[1751301337967,0.2,157.15,157.14,8.25585726]
[1751301338289,6.56334712,157.15,157.14,8.25585726]
[1751301339371,0.2,157.15,157.14,8.25585726]
[1751301339875,6.56338954,157.15,157.13,28.7577]
[1751301340080,6.56338954,157.15,157.14,8.25585726]
[1751301340480,6.56338954,157.15,157.13,1.5177]
[1751301340802,14.8192468,157.15,157.11,14.61585726]
[1751301341094,30.7276146,157.15,157.11,14.61585726]
[1751301341596,30.7276146,157.15,157.11,6.36]
[1751301341779,0.47694687,157.14,157.11,6.36]
[1751301342681,6.36415706,157.13,157.11,6.36]
[1751301343896,14.62001432,157.13,157.11,6.36]
[1751301344276,0.47694687,157.12,157.11,6.36]
[1751301344606,6.84150898,157.12,157.11,6.36]
[1751301344774,31.00877153,157.12,157.06,8.25585726]
[1751301344980,8.25585726,157.11,157.06,8.25585726]
[1751301345181,0.47694687,157.1,157.05,35.0858]
[1751301345382,0.47694687,157.1,157.06,8.25585726]
[1751301345602,0.47694687,157.11,157.06,8.25585726]
[1751301345778,8.73280413,157.11,157.06,8.25585726]
[1751301346511,0.47694687,157.11,157.07,8.25585726]
[1751301346687,6.36537237,157.1,157.07,8.25585726]
[1751301347807,6.36537237,157.1,157.05,7.8658]
[1751301348007,6.36537237,157.1,157.07,8.25585726]
[1751301349278,6.36537237,157.1,157.08,8.25585726]
[1751301350296,6.36537237,157.1,157.07,8.25585726]
[1751301350702,6.36496722,157.11,157.07,8.25585726]
[1751301351282,6.36496722,157.11,157.09,8.25585726]
[1751301351882,6.36496722,157.11,157.08,8.25585726]
[1751301352809,6.36456211,157.12,157.08,8.25585726]
[1751301353302,6.36456211,157.12,157.06,25.01659105]
[1751301353506,6.36456211,157.12,157.09,8.25585726]
[1751301353805,6.36456211,157.12,157.1,8.25585726]
[1751301353990,6.36456211,157.12,157.11,8.25585726]
[1751301353991,0.2,157.12,157.11,8.25585726]
[1751301357594,6.56456211,157.12,157.11,8.25585726]
[1751301358216,30.73182466,157.12,157.06,8.35585726]
[1751301358386,0.47694687,157.11,157.06,8.35585726]
[1751301358724,8.73280413,157.11,157.06,8.35585726]
[1751301359400,6.36577757,157.09,157.06,0.1]
[1751301359597,6.36577757,157.09,157.06,8.35585726]
[1751301360819,6.36577757,157.09,157.07,8.25585726]
[1751301361007,6.36577757,157.09,157.06,0.1]
[1751301361008,6.36549506,157.1,157.08,8.25585726]
[1751301361323,6.36549506,157.1,157.07,8.25585726]
[1751301361502,6.36496722,157.11,157.08,8.25585726]
[1751301361699,6.56470686,157.12,157.1,8.25585726]
[1751301362012,6.56470686,157.12,157.11,8.25585726]
[1751301362013,0.2,157.12,157.11,8.25585726]
[1751301365803,6.56466793,157.12,157.1,6.3]
[1751301366415,14.82052519,157.12,157.1,6.3]
[1751301368125,28.64964886,157.03,156.99,7.1725811]
[1751301368422,18.64964886,156.96,156.9,7.42829032]
[1751301368724,8.25585726,156.94,156.9,7.42829032]
[1751301368931,53.18982926,156.94,156.9,7.42829032]
[1751301369229,26.0,156.91,156.9,7.42829032]
[1751301369414,32.3730801,156.91,156.9,7.66465032]
[1751301369608,40.62893736,156.91,156.9,7.66465032]
[1751301369797,6.3730801,156.91,156.9,7.66465032]
[1751301370198,6.85002697,156.91,156.9,7.66465032]
[1751301370402,15.10588423,156.91,156.9,7.66465032]
[1751301370625,34.25585726,156.94,156.9,7.66465032]
[1751301371227,8.73280413,156.93,156.9,7.66465032]
[1751301371402,6.37267397,156.92,156.9,7.66465032]
[1751301371602,14.62775097,156.94,156.9,7.66465032]
[1751301372215,6.37189371,156.94,156.9,15.92050758]
[1751301372519,34.25585726,156.96,156.91,8.25585726]
[1751301372701,6.37156957,156.95,156.91,8.25585726]
[1751301373133,6.37156957,156.95,156.9,7.66465032]
[1751301373134,15.1043737,156.95,156.9,15.92050758]
[1751301373526,6.37156957,156.95,156.91,8.25585726]
[1751301374316,8.25585726,156.92,156.9,7.66465032]
[1751301374519,8.73280413,156.91,156.9,7.66465032]
[1751301374907,0.47694687,156.91,156.9,7.66465032]
[1751301375115,0.47694687,156.94,156.9,7.66465032]
[1751301375318,8.73280413,156.94,156.9,7.66465032]
[1751301375722,6.37192304,156.94,156.91,8.25585726]
[1751301378202,30.0,156.92,156.91,8.25585726]
[1751301378837,30.0,156.92,156.9,15.92050758]
[1751301379605,36.3728924,156.92,156.9,15.92050758]
[1751301379807,36.3728924,156.92,156.9,7.66465032]
[1751301380016,45.10569653,156.92,156.9,7.66465032]
[1751301380212,8.25585726,156.91,156.9,7.66465032]
[1751301380435,38.25585726,156.91,156.9,7.66465032]
[1751301381617,44.62893736,156.91,156.9,7.66465032]
[1751301382106,36.3730801,156.91,156.9,7.66465032]
[1751301382306,44.62893736,156.91,156.9,0.25255049]
[1751301382721,8.25585726,156.89,156.87,7.54686007]
[1751301383035,30.0,156.88,156.87,7.54686007]
[1751301383213,21.6668,156.88,156.87,107.75356619]
[1751301383411,21.6668,156.88,156.87,108.03788933]
[1751301383927,21.6668,156.88,156.87,15.70806007]
[1751301384224,21.6668,156.88,156.87,15.80271733]
[1751301384421,6.85002697,156.91,156.87,15.80271733]
[1751301384934,6.85002697,156.91,156.88,8.25585726]
[1751301385133,6.37226789,156.93,156.9,8.25585726]
[1751301385435,30.0,156.91,156.88,8.25585726]
[1751301385624,6.37348629,156.9,156.87,7.54686007]
[1751301386530,30.0,156.89,156.87,7.54686007]
[1751301386716,30.0,156.89,156.87,15.80271733]
[1751301386921,30.0,156.89,156.88,8.25585726]
[1751301387514,30.0,156.89,156.87,15.80271733]
[1751301387726,6.37429882,156.88,156.87,7.54686007]
[1751301388024,36.37429882,156.88,156.87,7.54686007]
[1751301388225,44.63015608,156.88,156.87,7.54686007]
[1751301392241,36.37429882,156.88,156.87,7.54686007]
[1751301392431,63.56412808,156.88,156.87,7.54686007]
[1751301392829,63.27980494,156.88,156.87,7.54686007]
[1751301394730,63.27980494,156.88,156.84,7.66542981]
[1751301394731,26.0,156.85,156.84,7.66542981]
[1751301394931,25.00504886,156.84,156.81,7.78399955]
[1751301395146,22.32000509,156.81,156.78,7.90256929]
[1751301395453,34.25585726,156.79,156.78,7.90256929]
[1751301395846,56.0,156.79,156.78,7.90256929]
[1751301396037,64.25585726,156.79,156.78,7.90256929]
[1751301396829,56.0,156.79,156.78,7.90256929]
[1751301397027,64.25585726,156.79,156.78,7.90256929]
[1751301397339,36.37795777,156.79,156.78,7.90256929]
[1751301397539,36.37795777,156.79,156.78,16.15842655]
[1751301397735,30.0,156.79,156.78,16.15842655]
[1751301397931,36.37795777,156.79,156.78,16.15842655]
[1751301398137,36.37795777,156.79,156.78,7.90256929]
[1751301398354,30.0,156.79,156.78,16.15842655]
[1751301399447,6.37718542,156.81,156.78,16.15842655]
[1751301399638,6.37718542,156.81,156.8,8.25585726]
[1751301399837,36.37718542,156.81,156.78,7.90256929]
[1751301400147,36.37718542,156.81,156.79,8.25585726]
[1751301400942,52.3200462,156.81,156.78,7.90256929]
[1751301401150,6.37795777,156.79,156.78,7.90256929]
[1751301401338,30.0,156.79,156.78,16.15842655]
[1751301401849,30.0,156.79,156.78,7.90256929]
[1751301402555,30.0,156.79,156.78,16.15842655]
[1751301403947,30.0,156.79,156.78,22.31172655]
[1751301404551,28.0492,156.79,156.78,40.87540587]
[1751301404737,30.56760787,156.87,156.78,23.81892655]
[1751301405049,30.56760787,156.87,156.81,8.25585726]
[1751301405050,8.73280413,156.86,156.81,8.25585726]
[1751301405240,30.0,156.82,156.81,8.25585726]
[1751301405649,30.0,156.82,156.8,6.42]
[1751301405830,6.37551801,156.85,156.81,8.25585726]
[1751301406027,6.37551801,156.85,156.82,8.25585726]
[1751301406330,30.0,156.83,156.79,6.42]
[1751301406527,30.0,156.83,156.82,8.25585726]
[1751301407252,30.0,156.83,156.81,8.25585726]
[1751301407432,6.37673766,156.82,156.8,8.25585726]
[1751301407634,6.37673766,156.82,156.78,15.56306929]
[1751301407834,6.37673766,156.82,156.79,8.25585726]
[1751301408035,6.37673766,156.82,156.78,21.98306929]
[1751301408356,30.0,156.81,156.79,8.25585726]
[1751301408554,30.0,156.81,156.78,30.23892655]
[1751301408865,30.0,156.81,156.78,22.57842655]
[1751301409445,6.37755102,156.8,156.78,22.57842655]
[1751301409644,30.0,156.79,156.78,22.57842655]
[1751301410560,36.37795777,156.79,156.78,22.57842655]
[1751301411333,36.37795777,156.79,156.78,14.32256929]
[1751301411537,36.37795777,156.79,156.78,22.57842655]
[1751301412059,30.0,156.79,156.78,22.57842655]
[1751301412256,14.63178176,156.84,156.78,22.57842655]
[1751301412446,30.57159303,156.84,156.79,8.25585726]
[1751301412644,30.0,156.8,156.78,14.32256929]
[1751301413259,6.3759245,156.84,156.78,20.70083693]
[1751301413856,6.3759245,156.84,156.81,8.25585726]
[1751301414055,30.0,156.82,156.78,20.70083693]
[1751301414257,30.0,156.82,156.81,8.25585726]
[1751301415156,24.66857464,156.88,156.81,16.18445726]
[1751301415157,16.41271738,156.88,156.81,16.18445726]
[1751301415469,24.66857464,156.88,156.83,8.25585726]
[1751301415770,30.0,156.84,156.82,8.25585726]
[1751301416468,30.0,156.84,156.83,8.25585726]
[1751301416849,36.3759245,156.84,156.83,8.25585726]
[1751301417155,36.3759245,156.84,156.82,8.25585726]
[1751301417952,36.3759245,156.84,156.83,8.25585726]
[1751301420273,30.0,156.84,156.83,8.25585726]
[1751301420449,146.2,156.89,156.83,41.50236031]
[1751301420651,15.55347663,156.91,156.88,8.25585726]
[1751301420949,15.55347663,156.91,156.84,45.98964886]
[1751301420950,9.18022904,156.91,156.9,8.25585726]
[1751301421350,9.18022904,156.91,156.9,35.16136338]
[1751301421655,9.18022904,156.91,156.9,26.90550612]
[1751301421972,6.57194649,156.94,156.93,44.64964886]
[1751301421973,0.2,156.94,156.93,44.64964886]
[1751301422174,0.2,156.94,156.93,86.92209715]
[1751301423174,15.91494264,157.09,156.98,18.64964886]
[1751301423353,6.36577757,157.09,157.0,6.1661]
[1751301423671,8.25585726,157.07,157.02,8.25585726]
[1751301423856,0.47694687,157.08,157.04,8.25585726]
[1751301424056,6.36577757,157.09,157.05,8.25585726]
[1751301424260,30.53607877,157.09,157.05,8.25585726]
[1751301424482,22.28022151,157.09,157.05,8.25585726]
[1751301424654,6.84244918,157.1,157.07,8.25585726]
[1751301424975,152.74364687,157.09,156.97,18.64964886]
[1751301425145,8.25585726,157.02,156.98,8.25585726]
[1751301425352,8.25585726,157.02,156.97,14.65585726]
[1751301425872,0.47694687,157.04,157.0,8.25585726]
[1751301426255,36.36902108,157.01,157.0,8.25585726]
[1751301426451,36.36902108,157.01,156.99,8.25585726]
[1751301426652,8.25585726,157.0,156.97,6.4]
[1751301426868,0.47694687,157.0,156.95,8.25585726]
[1751301427074,0.47694687,157.0,156.93,6.4]
[1751301427274,8.25585726,156.97,156.93,6.4]
[1751301427573,8.73280413,156.97,156.93,6.4]
[1751301427871,8.25585726,156.97,156.93,6.4]
[1751301428055,30.0,156.98,156.95,8.25585726]
[1751301428258,30.0,156.96,156.95,8.25585726]
[1751301428782,30.0,156.96,156.93,6.4]
[1751301429353,30.0,156.96,156.95,8.25585726]
[1751301430575,8.25585726,156.99,156.95,8.25585726]
[1751301430788,6.36983247,156.99,156.95,8.25585726]
[1751301430993,15.92377623,157.0,156.97,8.25585726]
[1751301430994,6.36947221,157.0,156.97,8.25585726]
[1751301431286,8.25585726,157.05,156.99,8.25585726]
[1751301431489,8.25585726,157.02,156.95,18.64964886]
[1751301431652,8.25585726,157.0,156.93,6.4]
[1751301431848,8.25585726,156.99,156.94,8.25585726]
[1751301432293,6.37023824,156.98,156.94,8.25585726]
[1751301433181,8.25585726,156.95,156.93,6.4]
[1751301433366,8.25585726,156.94,156.89,8.25585726]
[1751301433563,8.25585726,156.93,156.89,8.25585726]
[1751301433773,30.0,156.92,156.89,8.25585726]
[1751301434282,6.3730801,156.91,156.88,8.25585726]
[1751301434482,15.10588423,156.91,156.87,14.65585726]
[1751301434670,30.56163763,156.91,156.87,14.65585726]
[1751301434868,30.0,156.9,156.87,6.4]
[1751301435069,8.25585726,156.89,156.87,6.4]
[1751301435461,38.73280413,156.9,156.87,6.4]
[1751301435780,30.0,156.88,156.87,6.4]
[1751301436583,36.37429882,156.88,156.87,6.4]
[1751301437096,36.37429882,156.88,156.85,8.25585726]
[1751301437678,30.0,156.88,156.87,8.25585726]
[1751301438699,36.37429882,156.88,156.87,8.25585726]
[1751301438858,30.0,156.88,156.87,8.35585726]
[1751301441472,36.37429882,156.88,156.87,8.35585726]
[1751301442077,30.0,156.88,156.87,0.1]
[1751301442265,36.37429882,156.88,156.87,8.35585726]
[1751301442463,30.0,156.88,156.87,8.35585726]
[1751301443084,30.0,156.88,156.87,0.1]
[1751301443289,30.0,156.88,156.87,8.35585726]
[1751301444673,36.37429882,156.88,156.87,0.1]
[1751301446395,30.0,156.88,156.87,8.35585726]
[1751301448997,30.0,156.88,156.87,27.6]
[1751301449195,6.37410476,156.89,156.87,35.85585726]
[1751301449400,22.30443166,156.92,156.88,8.25585726]
[1751301449597,30.0,156.89,156.88,8.25585726]
[1751301450586,30.0,156.89,156.87,27.6]
[1751301450902,30.0,156.89,156.88,8.25585726]
[1751301451106,30.0,156.89,156.88,14.63015608]
[1751301451706,15.92614379,156.98,156.91,26.0]
[1751301451921,15.92614379,156.98,156.91,32.54]
[1751301451922,30.0,156.92,156.91,32.54]
[1751301452130,30.0,156.92,156.91,60.0]
[1751301452630,22.29638203,156.98,156.91,60.0]
[1751301452902,30.0,156.92,156.87,0.1]
[1751301453104,30.0,156.92,156.89,8.25585726]
[1751301453903,8.73280413,156.94,156.89,8.25585726]
[1751301454711,30.55879487,156.93,156.88,8.25585726]
[1751301455104,8.73280413,156.92,156.87,35.91585726]
[1751301455289,0.47694687,156.92,156.88,8.25585726]
[1751301455488,30.55879487,156.93,156.88,8.25585726]
[1751301456310,22.30293761,156.93,156.88,8.35585726]
[1751301456518,22.30293761,156.93,156.89,8.25585726]
[1751301456885,30.0,156.91,156.89,8.25585726]
[1751301457081,30.0,156.91,156.88,8.35585726]
[1751301457686,30.0,156.91,156.89,8.25585726]
[1751301457896,30.0,156.91,156.9,8.25585726]
[1751301458831,30.0,156.91,156.89,8.25585726]
[1751301459203,36.3730801,156.91,156.88,8.35585726]
[1751301460126,36.3730801,156.91,156.88,0.1]
[1751301460317,36.3730801,156.91,156.89,8.25585726]
[1751301460519,36.3730801,156.91,156.88,8.35585726]
[1751301460728,36.3730801,156.91,156.88,0.1]
[1751301460924,36.3730801,156.91,156.88,8.35585726]
[1751301461127,36.3730801,156.91,156.88,0.1]
[1751301461322,36.3730801,156.91,156.88,8.35585726]
[1751301461728,36.3730801,156.91,156.89,8.25585726]
[1751301462315,30.0,156.91,156.9,8.25585726]
[1751301463016,30.0,156.91,156.9,54.38550612]
[1751301463218,30.0,156.91,156.9,69.29917281]
[1751301463419,0.2,156.95,156.93,18.64964886]
[1751301463617,0.2,156.95,156.94,14.79585726]
[1751301463816,0.2,156.95,156.94,42.27585726]
[1751301464229,0.2,156.95,156.94,34.02]
[1751301464434,0.2,156.95,156.94,42.27585726]
[1751301466626,0.2,156.95,156.94,34.02]
[1751301466829,0.2,156.95,156.94,42.27585726]
[1751301467213,0.2,156.95,156.94,14.79585726]
[1751301468112,6.57145587,156.95,156.94,14.79585726]
[1751301468331,6.57145587,156.95,156.94,6.54]
[1751301469836,36.57145587,156.95,156.94,6.54]
[1751301470314,45.30426,156.95,156.94,6.54]
[1751301470520,61.23289969,156.95,156.9,8.25585726]
[1751301470718,30.55879487,156.93,156.88,6.52]
[1751301470946,6.37226789,156.93,156.9,8.25585726]
[1751301471131,6.37226789,156.93,156.91,8.25585726]
[1751301471438,6.37200259,156.94,156.92,8.25585726]
[1751301472327,30.0,156.93,156.92,8.25585726]
[1751301472521,30.0,156.93,156.91,8.25585726]
[1751301472932,36.37257864,156.93,156.91,8.25585726]
[1751301473237,6.37257864,156.93,156.91,8.25585726]
[1751301473817,6.37257864,156.93,156.9,8.25585726]
[1751301474023,14.6284359,156.93,156.89,8.25585726]
[1751301474239,30.55910562,156.93,156.89,8.25585726]
[1751301474533,22.30324836,156.93,156.89,8.25585726]
[1751301474734,22.30324836,156.93,156.91,0.1]
[1751301474929,6.37186185,156.94,156.91,8.35585726]
[1751301475638,14.62771911,156.94,156.91,0.1]
[1751301476039,15.10466598,156.94,156.91,0.1]
[1751301477013,14.62771911,156.94,156.91,0.1]
[1751301477209,6.37186185,156.94,156.91,0.1]
[1751301477423,6.37186185,156.94,156.91,8.35585726]
[1751301477937,30.55737375,156.94,156.91,0.1]
[1751301478231,8.25585726,156.92,156.91,0.1]
[1751301478422,8.73280413,156.93,156.91,0.1]
[1751301478742,30.0,156.92,156.91,0.1]
[1751301479433,36.37267397,156.92,156.91,0.1]
[1751301479637,36.37267397,156.92,156.91,8.35585726]
[1751301480424,30.0,156.92,156.91,8.35585726]
[1751301481026,6.57160232,156.95,156.91,8.35585726]
[1751301481027,0.2,156.95,156.91,14.7288374]
[1751301481235,6.36983247,156.99,156.94,8.25585726]
[1751301481416,6.36983247,156.99,156.96,8.25585726]
[1751301481742,30.0,156.97,156.93,6.37192728]
[1751301481923,30.0,156.97,156.96,8.25585726]
[1751301482243,8.56427581,156.99,156.96,8.25585726]
[1751301482441,8.56427581,156.99,156.97,8.25585726]
[1751301482646,30.0,156.98,156.97,8.25585726]
[1751301483529,14.93417846,156.99,156.97,8.25585726]
[1751301483729,14.93417846,156.99,156.98,8.25585726]
[1751301484042,44.93417846,156.99,156.95,6.42]
[1751301484227,53.19003572,156.99,156.95,14.67585726]
[1751301484547,60.85875964,156.99,156.95,6.42]
[1751301484724,60.85875964,156.99,156.96,8.25585726]
[1751301485952,22.29448383,156.99,156.95,6.42]
[1751301486447,6.36990265,156.99,156.95,6.42]
[1751301486744,6.36990265,156.99,156.95,14.67585726]
[1751301486941,30.55034109,156.99,156.95,14.67585726]
[1751301487159,30.55034109,156.99,156.95,6.42]
[1751301487316,8.25585726,156.98,156.95,6.42]
[1751301488560,8.73280413,156.98,156.95,6.42]
[1751301488756,8.25585726,156.96,156.95,6.42]
[1751301488970,38.25585726,156.96,156.95,6.42]
[1751301489142,30.0,156.96,156.95,6.42]
[1751301489344,36.37104994,156.96,156.95,6.42]
[1751301489646,44.6269072,156.96,156.95,6.42]
[1751301490467,36.37104994,156.96,156.95,6.42]
[1751301490665,44.6269072,156.96,156.95,6.42]
[1751301491477,36.37104994,156.96,156.95,6.42]
[1751301492868,45.10385407,156.96,156.95,6.42]
[1751301493449,61.03147894,156.96,156.91,0.1]
[1751301493673,8.25585726,156.94,156.91,0.1]
[1751301493970,8.25585726,156.95,156.91,0.1]
[1751301494558,8.25585726,156.95,156.91,8.35585726]
[1751301494773,52.29867481,156.96,156.93,8.25585726]
[1751301494973,0.2,156.98,156.95,8.25585726]
[1751301495176,0.2,156.98,156.97,8.25585726]
[1751301497276,0.2,156.98,156.97,26.90550612]
[1751301497482,0.2,156.98,156.97,59.27615019]
[1751301497657,0.2,156.98,156.97,86.84047333]
[1751301498168,0.2,156.98,156.97,93.93068892]
[1751301498376,0.2,156.98,156.97,67.93068892]
[1751301498557,0.2,157.02,157.01,44.64964886]
[1751301498763,0.2,157.02,157.01,80.16550612]
[1751301499576,0.2,157.02,157.01,61.51585726]
[1751301500555,6.56861546,157.02,156.98,27.26]
[1751301500754,0.2,157.02,156.99,8.25585726]
[1751301500995,6.56864436,157.02,156.98,8.25585726]
[1751301501297,14.82450162,157.02,156.98,14.57585726]
[1751301501668,14.82450162,157.02,156.98,6.32]
[1751301503380,8.25585726,157.01,156.98,6.32]
[1751301503566,8.25585726,157.0,156.98,6.32]
[1751301504070,14.62487834,157.01,156.98,6.32]
[1751301504271,6.36902108,157.01,156.98,6.32]
[1751301504494,6.36902108,157.01,156.99,8.25585726]
[1751301504989,6.36902108,157.01,156.98,6.32]
[1751301504990,6.36902108,157.01,156.98,14.57585726]
[1751301505165,0.2,157.02,157.0,8.25585726]
[1751301505365,0.2,157.02,157.01,8.25585726]
[1751301508389,0.2,157.02,157.01,27.82673136]
[1751301508685,0.2,157.02,157.01,26.90550612]
[1751301508887,0.2,157.02,157.01,33.2745272]
[1751301509390,6.26672668,157.07,157.01,33.2745272]
[1751301509694,6.26672668,157.07,157.04,8.25585726]
[1751301510075,6.26672668,157.07,157.05,8.25585726]
[1751301510392,6.36577757,157.09,157.05,8.25585726]
[1751301510589,6.36577757,157.09,157.02,33.62860125]
[1751301510884,8.25585726,157.07,157.02,8.25585726]
[1751301511086,8.73280413,157.06,157.01,35.51585726]
[1751301511670,8.73280413,157.06,157.01,27.26]
[1751301511671,14.62325617,157.05,157.01,27.26]
[1751301511872,6.36739891,157.05,157.01,27.26]
[1751301512593,6.36739891,157.05,157.0,8.25585726]
[1751301512788,8.25585726,157.03,156.98,34.25585726]
[1751301512981,8.25585726,157.03,156.98,67.83585726]
[1751301513181,8.25585726,157.03,156.98,41.83585726]
[1751301513770,6.36861546,157.02,156.98,41.83585726]
[1751301515395,6.36861546,157.02,156.98,6.32]
[1751301515598,6.36861546,157.02,156.99,8.25585726]
[1751301516087,6.36861546,157.02,156.98,41.83585726]
[1751301517572,6.36861546,157.02,156.98,41.81585726]
[1751301517996,8.25585726,157.01,156.98,6.32]
[1751301518194,8.25585726,157.01,156.97,0.1]
[1751301518698,22.76710098,157.02,156.97,0.1]
[1751301518878,22.76710098,157.02,156.97,8.35585726]
[1751301519086,31.02295824,157.02,156.97,8.35585726]
[1751301519288,8.25585726,157.01,156.97,8.35585726]
[1751301519700,6.36942675,157.0,156.97,8.35585726]
[1751301520079,6.36942675,157.0,156.98,8.25585726]
[1751301520490,6.3691078,157.01,156.99,8.25585726]
[1751301520683,6.36739891,157.05,157.0,8.25585726]
[1751301520890,6.36658814,157.07,157.04,8.25585726]
[1751301521084,6.36537237,157.1,157.06,8.25585726]
[1751301521284,6.36537237,157.1,157.07,8.25585726]
[1751301521596,6.36537237,157.1,157.04,18.64964886]
[1751301521770,6.36496722,157.11,157.07,8.25585726]
[1751301521977,0.47694687,157.1,157.06,8.25585726]
[1751301522392,0.47694687,157.1,157.03,33.56]
[1751301522393,8.73280413,157.1,157.03,33.56]
[1751301522607,8.25585726,157.08,157.03,8.25585726]
[1751301522777,8.73280413,157.07,157.02,41.81585726]
[1751301524204,6.3669935,157.06,157.02,41.81585726]
[1751301524379,6.3669935,157.06,157.02,14.57585726]
[1751301525696,30.54033452,157.06,157.02,6.32]
[1751301526201,8.25585726,157.07,157.02,14.57585726]
[1751301526411,48.75858679,157.08,157.03,8.25585726]
[1751301526593,57.01444405,157.08,157.03,8.25585726]
[1751301526796,8.25585726,157.06,157.02,6.32]
[1751301526995,8.73280413,157.06,157.02,6.32]
[1751301527395,8.73280413,157.06,157.02,14.57585726]
[1751301527620,8.73280413,157.06,157.02,6.32]
[1751301528010,8.25585726,157.04,156.99,26.90550612]
[1751301528199,6.36820989,157.03,156.99,14.57585726]
[1751301528590,30.54459189,157.03,156.99,6.32]
[1751301528899,14.62406715,157.03,156.99,6.32]
[1751301529788,30.54459189,157.03,156.99,6.32]
[1751301529994,8.73280413,157.02,156.99,6.32]
[1751301530683,6.36902108,157.01,156.97,14.65585726]
[1751301531598,30.54743104,157.01,156.97,6.4]
[1751301531906,8.25585726,156.99,156.97,6.4]
[1751301532293,0.47694687,157.0,156.97,6.4]
[1751301532512,8.73280413,157.0,156.97,6.4]
[1751301532807,6.37023824,156.98,156.97,6.4]
[1751301534125,32.31596877,157.04,156.97,6.4]
[1751301534320,8.25585726,156.98,156.97,6.4]
[1751301534630,14.6260955,156.98,156.97,6.4]
[1751301535308,14.6260955,156.98,156.97,0.1]
[1751301535900,40.91041864,156.98,156.97,0.1]
[1751301536098,14.91041864,156.98,156.97,0.1]
[1751301536408,40.91041864,156.98,156.97,0.1]
[1751301536591,14.91041864,156.98,156.97,0.1]
[1751301537711,40.91041864,156.98,156.97,0.1]
[1751301538304,14.91041864,156.98,156.97,0.1]
[1751301538620,33.5600675,156.98,156.97,0.1]
[1751301539697,40.91041864,156.98,156.97,0.1]
[1751301539901,14.91041864,156.98,156.97,0.1]
[1751301540207,15.38736551,156.98,156.97,0.1]
[1751301541191,15.38736551,156.98,156.91,0.1]
[1751301541192,26.0,156.95,156.91,0.1]
[1751301541408,8.25585726,156.92,156.91,0.1]
[1751301542931,14.62853123,156.92,156.91,0.1]
[1751301543131,17.78959129,156.92,156.91,0.1]
[1751301544100,36.72356329,156.92,156.91,0.1]
[1751301544774,37.20051016,156.92,156.91,0.1]
[1751301545598,53.13219509,156.92,156.88,0.1]
[1751301545800,43.12916092,156.89,156.88,0.1]
[1751301546003,43.60610779,156.89,156.88,0.1]
[1751301546212,49.98000032,156.89,156.88,0.1]
[1751301546418,49.69567718,156.89,156.88,0.1]
[1751301546726,68.62964918,156.89,156.88,0.1]
[1751301549928,23.98000032,156.89,156.88,0.1]
[1751301550331,41.72414306,156.89,156.88,0.1]
[1751301550639,23.98000032,156.89,156.88,0.1]
[1751301550937,49.98000032,156.89,156.88,0.1]
[1751301551713,42.62964918,156.89,156.88,0.1]
[1751301553011,34.37379192,156.89,156.88,0.1]